fUST/lending_fUST_20260113
["ID","MTS","AMOUNT","RATE_DAILY","PERIOD"]
[401463960,1768242632644,-1330.86509089,0.00013273,2]
[401463961,1768242632658,-186.09077346,0.00013273,2]
[401463962,1768242632667,-500.0,0.00013273,2]
[401463963,1768242632676,-35.61761806,0.000135,2]
[401464080,1768242638483,-266.38238194,0.000135,2]
[401464081,1768242638504,-2035.59183559,0.00013599,2]
[401464083,1768242638515,-395.95461452,0.00013698,2]
[401464086,1768242638529,-500.0,0.00013698,2]
[401464088,1768242638545,-160.68145685,0.00013698,2]
[401464090,1768242638554,-500.0,0.00013698,2]
[401464092,1768242638564,-500.0,0.00013698,2]
[401464094,1768242638573,-168.00768076,0.00013698,2]
[401464096,1768242638582,-501.31323418,0.00013698,2]
[401464098,1768242638591,-500.0,0.00013698,2]
[401464100,1768242638600,-500.0,0.00013698,2]
[401464102,1768242638610,-631.62,0.00013698,2]
[401464104,1768242638620,-631.62,0.00013698,2]
[401464105,1768242638629,-631.62,0.00013698,2]
[401464107,1768242638639,-631.62,0.00013698,2]
[401464109,1768242638651,-631.62,0.00013698,2]
[401464111,1768242638661,-631.62,0.00013698,2]
[401464113,1768242638670,-631.62,0.00013698,2]
[401464115,1768242638679,-631.62,0.00013698,2]
[401464117,1768242638691,-12258.7902432,0.00013699,2]
[401464289,1768242640602,-350.10687768,0.00013699,2]
[401464703,1768242646432,-57856.92771964,0.00013699,2]
[401465246,1768242763652,500.0,0.00030136,120]
[401465247,1768242763918,508.32695464,0.00030136,120]
[401465248,1768243033815,116.460437,0.0002536,110]
[401465249,1768243033841,104.07445568,0.0002536,110]
[401465250,1768243204097,153.5,5e-05,2]
[401465251,1768243204565,153.5,7.3e-05,2]
[401465252,1768243278762,155.0,8.06e-05,2]
[401465296,1768243832479,-4571.87614,0.00012074,2]
[401465298,1768243832489,-222.32080819,0.00012435,2]
[401465300,1768243832499,-300.0,0.00012796,2]
[401465302,1768243832509,-9251.35082559,0.00012797,2]
[401465304,1768243832520,-6581.39517441,0.00012797,2]
[401465306,1768243832530,-300.0,0.00013052,2]
[401465308,1768243832539,-300.0,0.00013052,2]
[401465310,1768243832548,-300.0,0.00013052,2]
[401465312,1768243832558,-300.0,0.00013052,2]
[401465314,1768243832567,-300.0,0.00013052,2]
[401465316,1768243832576,-300.0,0.00013052,2]
[401465318,1768243832586,-300.0,0.00013052,2]
[401465320,1768243832596,-300.0,0.00013052,2]
[401465322,1768243832605,-300.0,0.00013052,2]
[401465325,1768243832615,-300.0,0.00013052,2]
[401465328,1768243832624,-300.0,0.00013052,2]
[401465331,1768243832633,-300.0,0.00013052,2]
[401465334,1768243832643,-300.0,0.00013052,2]
[401465337,1768243832652,-6558.39707314,0.00013173,2]
[401465339,1768243832661,-500.0,0.00013273,2]
[401465342,1768243832670,-500.0,0.00013273,2]
[401465345,1768243832680,-179.71407483,0.00013273,2]
[401465347,1768243832689,-500.0,0.00013273,2]
[401465350,1768243832699,-500.0,0.00013273,2]
[401465352,1768243832708,-500.0,0.00013273,2]
[401465354,1768243832718,-500.0,0.00013273,2]
[401465356,1768243832727,-500.0,0.00013273,2]
[401465357,1768243832736,-500.0,0.00013273,2]
[401465358,1768243832745,-500.0,0.00013273,2]
[401465359,1768243832755,-500.0,0.00013273,2]
[401465360,1768243832765,-500.0,0.00013273,2]
[401465361,1768243832774,-500.0,0.00013273,2]
[401465362,1768243832783,-500.0,0.00013273,2]
[401465363,1768243832792,-500.0,0.00013273,2]
[401465364,1768243832802,-500.0,0.00013273,2]
[401465365,1768243832811,-500.0,0.00013273,2]
[401465366,1768243832821,-500.0,0.00013273,2]
[401465367,1768243832830,-500.0,0.00013273,2]
[401465368,1768243832839,-500.0,0.00013273,2]
[401465369,1768243832848,-500.0,0.00013273,2]
[401465370,1768243832858,-500.0,0.00013273,2]
[401465371,1768243832867,-500.0,0.00013273,2]
[401465372,1768243832877,-500.0,0.00013273,2]
[401465373,1768243832886,-500.0,0.00013273,2]
[401465374,1768243832895,-397.54252159,0.00013273,2]
[401465375,1768243832904,-500.0,0.00013273,2]
[401465376,1768243832914,-500.0,0.00013273,2]
[401465377,1768243832923,-500.0,0.00013273,2]
[401465378,1768243832933,-500.41691689,0.00013273,2]
[401465379,1768243832942,-473.2526551,0.00013273,2]
[401465380,1768243832951,-500.0,0.00013273,2]
[401465381,1768243832960,-389.43647634,0.00013273,2]
[401465382,1768243832969,-500.0,0.00013273,2]
[401465383,1768243832984,-500.0,0.00013273,2]
[401465384,1768243832994,-500.0,0.00013273,2]
[401465385,1768243833004,-500.0,0.00013273,2]
[401465386,1768243833015,-500.0,0.00013273,2]
[401465387,1768243833024,-500.0,0.00013273,2]
[401465388,1768243833033,-500.0,0.00013273,2]
[401465389,1768243833043,-500.0,0.00013273,2]
[401465390,1768243833053,-500.0,0.00013273,2]
[401465391,1768243833063,-500.0,0.00013273,2]
[401465392,1768243833073,-500.0,0.00013273,2]
[401465393,1768243833082,-500.0,0.00013273,2]
[401465394,1768243833093,-469.584,0.00013273,2]
[401465395,1768243833102,-179.18,0.00013273,2]
[401465396,1768243833112,-2844.5358916,0.00013465,2]
[401465397,1768243833122,-14224.27187676,0.000135,2]
[401465398,1768243833131,-1040.10398434,0.00013561,2]
[401465399,1768243833141,-1610.618694,0.00013562,2]
[401465400,1768243833150,-839.6097025,0.00013562,2]
[401465401,1768243833160,-27000.341635,0.00013562,2]
[401465402,1768243833170,-500.0,0.00013571,2]
[401465403,1768243833180,-500.0,0.00013571,2]
[401465404,1768243833189,-500.0,0.00013571,2]
[401465405,1768243833198,-500.0,0.00013571,2]
[401465406,1768243833207,-500.0,0.00013571,2]
[401465408,1768243833217,-504.8996356,0.00013571,2]
[401465410,1768243833226,-500.0,0.00013571,2]
[401465412,1768243833235,-464.50691159,0.00013571,2]
[401465414,1768243833244,-245.82205968,0.00013571,2]
[401465416,1768243833253,-500.0,0.00013571,2]
[401465418,1768243833263,-500.0,0.00013571,2]
[401465420,1768243833272,-600.0,0.00013571,2]
[401465422,1768243833282,-500.0,0.00013571,2]
[401465424,1768243833291,-500.0,0.00013598,2]
[401465426,1768243833300,-718.91778806,0.00013598,2]
[401465428,1768243833309,-488.11526073,0.00013598,2]
[401465430,1768243833318,-718.91778806,0.00013598,2]
[401465432,1768243833328,-718.91778806,0.00013598,2]
[401465434,1768243833337,-718.91778806,0.00013598,2]
[401465436,1768243833346,-718.91778806,0.00013598,2]
[401465438,1768243833356,-718.91778806,0.00013598,2]
[401465440,1768243833365,-718.91778806,0.00013598,2]
[401465442,1768243833374,-718.91778806,0.00013598,2]
[401465444,1768243833386,-718.91778806,0.00013598,2]
[401465446,1768243833396,-718.91778806,0.00013598,2]
[401465448,1768243833405,-718.91778806,0.00013598,2]
[401465450,1768243833415,-718.91778806,0.00013598,2]
[401465451,1768243833424,-718.91778806,0.00013598,2]
[401465453,1768243833434,-718.91778806,0.00013598,2]
[401465456,1768243833443,-718.91778806,0.00013598,2]
[401465457,1768243833452,-718.91778806,0.00013598,2]
[401465460,1768243833462,-718.91778806,0.00013598,2]
[401465461,1768243833471,-776.4312111,0.00013598,2]
[401465464,1768243833481,-776.4312111,0.00013598,2]
[401465466,1768243833490,-776.4312111,0.00013598,2]
[401465468,1768243833500,-776.4312111,0.00013598,2]
[401465470,1768243833510,-776.4312111,0.00013598,2]
[401465472,1768243833519,-160.23618624,0.00013598,2]
[401465474,1768243833536,-616.19502486,0.00013598,2]
[401465476,1768243833545,-776.4312111,0.00013598,2]
[401465478,1768243833555,-27.57376404,0.00013598,2]
[401465644,1768243838535,-748.85744706,0.00013598,2]
[401465647,1768243838545,-776.4312111,0.00013598,2]
[401465648,1768243838556,-1.55647759,0.00013599,2]
[401465649,1768243838642,-1819.6685035,0.00013599,2]
[401465650,1768243838654,-17345.34563448,0.00013599,2]
[401465651,1768243838666,-980833.42938443,0.00013599,2]
[401465652,1768243838684,-151.0,0.000136,2]
[401465653,1768243838694,-151.0,0.000136,2]
[401465654,1768243838704,-151.0,0.000136,2]
[401465655,1768243838713,-151.0,0.000136,2]
[401465656,1768243838723,-151.0,0.000136,2]
[401465657,1768243838732,-151.0,0.000136,2]
[401465658,1768243838742,-300.0,0.00013673,2]
[401465659,1768243838751,-500.0,0.00013698,2]
[401465660,1768243838761,-500.0,0.00013698,2]
[401465661,1768243838770,-500.0,0.00013698,2]
[401465662,1768243838779,-500.0,0.00013698,2]
[401465663,1768243838789,-500.0,0.00013698,2]
[401465664,1768243838798,-500.0,0.00013698,2]
[401465665,1768243838807,-500.0,0.00013698,2]
[401465666,1768243838816,-500.0,0.00013698,2]
[401465667,1768243838826,-500.0,0.00013698,2]
[401465668,1768243838835,-500.0,0.00013698,2]
[401465669,1768243838844,-500.0,0.00013698,2]
[401465670,1768243838853,-500.0,0.00013698,2]
[401465671,1768243838862,-400.0,0.00013698,2]
[401465672,1768243838872,-500.0,0.00013698,2]
[401465673,1768243838881,-500.0,0.00013698,2]
[401465674,1768243838890,-500.0,0.00013698,2]
[401465675,1768243838900,-1136.91,0.00013698,2]
[401465676,1768243838910,-1136.91,0.00013698,2]
[401465677,1768243838920,-1136.91,0.00013698,2]
[401465678,1768243838929,-500.0,0.00013698,2]
[401465679,1768243838939,-500.0,0.00013698,2]
[401465680,1768243838949,-500.0,0.00013698,2]
[401465681,1768243838958,-500.0,0.00013698,2]
[401465682,1768243838969,-6144.37182069,0.00013699,2]
[401465785,1768243844767,-572.90395227,0.00013699,2]
[401465786,1768243845398,-25108.53041512,0.00013699,2]
[401465787,1768243845408,-5572.989775,0.00013699,2]
[401465788,1768243845418,-500.0,0.00013699,2]
[401465789,1768243845427,-500.0,0.00013699,2]
[401465790,1768243845437,-500.21077622,0.00013699,2]
[401465791,1768243845447,-500.0,0.00013699,2]
[401465792,1768243845456,-158.52512471,0.00013699,2]
[401465793,1768243845466,-500.0,0.00013699,2]
[401465794,1768243845476,-500.0,0.00013699,2]
[401465795,1768243845485,-500.0,0.00013699,2]
[401465796,1768243845495,-500.0,0.00013699,2]
[401465797,1768243845504,-500.0,0.00013699,2]
[401465798,1768243845515,-319.55752626,0.00013699,2]
[401465799,1768243845527,-180.44247374,0.00013699,2]
[401465800,1768243845537,-500.0,0.00013699,2]
[401465801,1768243845546,-500.0,0.00013699,2]
[401465802,1768243845556,-411.13623419,0.00013699,2]
[401465803,1768243845565,-500.16849027,0.00013699,2]
[401465804,1768243845576,-500.0,0.00013699,2]
[401465805,1768243845586,-500.0,0.00013699,2]
[401465806,1768243845595,-500.0,0.00013699,2]
[401465807,1768243845605,-500.0,0.00013699,2]
[401465808,1768243845615,-500.0,0.00013699,2]
[401465809,1768243845625,-500.0,0.00013699,2]
[401465810,1768243845635,-434.35047135,0.00013699,2]
[401465811,1768243845644,-500.0,0.00013699,2]
[401465812,1768243845654,-500.0,0.00013699,2]
[401465813,1768243845663,-160.69956574,0.00013699,2]
[401465814,1768243845673,-30.75179264,0.00013699,2]
[401465824,1768243846530,-469.24820736,0.00013699,2]
[401465825,1768243846541,-500.0,0.00013699,2]
[401465826,1768243846552,-500.0,0.00013699,2]
[401465827,1768243846562,-500.14249428,0.00013699,2]
[401465828,1768243846572,-500.0,0.00013699,2]
[401465829,1768243846581,-297.69766435,0.00013699,2]
[401465830,1768243846593,-202.30233565,0.00013699,2]
[401465831,1768243846603,-500.0,0.00013699,2]
[401465832,1768243846613,-69.72698653,0.00013699,2]
[401465833,1768243846624,-430.27301347,0.00013699,2]
[401465834,1768243846634,-500.0,0.00013699,2]
[401465836,1768243846643,-500.0,0.00013699,2]
[401465837,1768243846652,-500.0,0.00013699,2]
[401465838,1768243846662,-500.0,0.00013699,2]
[401465839,1768243846671,-311.72698673,0.00013699,2]
[401465840,1768243967377,1510.68668598,0.00030137,120]
[401465841,1768244015717,151.0,0.00030137,120]
[401465842,1768244092219,151.0,0.00030137,120]
[401465843,1768244112502,151.0,0.00030137,120]
[401465844,1768244119035,151.0,0.00030137,120]
[401465845,1768244141354,151.0,0.00030137,120]
[401465846,1768244149514,151.0,0.00030137,120]
[401465847,1768244185539,151.0,0.00030137,120]
[401465848,1768244193665,151.0,0.00030137,120]
[401465849,1768244256652,169.54,0.00030137,120]
[401465850,1768244283938,199.99536299,0.00030137,120]
[401465851,1768244404329,155.16,5e-05,2]
[401465852,1768244404799,155.16,5.8e-05,2]
[401465853,1768244405444,155.16,6.5e-05,2]
[401465854,1768244406036,155.16,7.3e-05,2]
[401465855,1768244406580,155.16,8e-05,2]
[401465856,1768244406953,155.16,8.8e-05,2]
[401465863,1768244727726,200.0,0.00029109,120]
[401465864,1768244729025,200.0,0.00029109,120]
[401465865,1768244730326,200.0,0.00029109,120]
[401465868,1768244841825,143.36410646,0.00024542,94]
[401465869,1768244841846,185.36863683,0.00024542,94]
[401465870,1768244841868,5.36285558,0.00024542,94]
[401465871,1768244842541,180.00578125,0.0002468,102]
[401465872,1768244842563,154.08981762,0.0002468,102]
[401465873,1768244843259,80.55690749,0.00024817,110]
[401465874,1768244843289,184.63136317,0.00024817,110]
[401465875,1768244843313,68.90732821,0.00024817,110]
[401465889,1768245004403,155.31,5e-05,2]
[401465891,1768245004864,155.31,5.8e-05,2]
[401465892,1768245005338,155.31,6.5e-05,2]
[401465893,1768245005906,155.31,7.3e-05,2]
[401465894,1768245006571,155.31,8e-05,2]
[401465895,1768245007020,155.31,8.8e-05,2]
[401465896,1768245007581,155.31,9.5e-05,2]
[401465902,1768245031661,-574.0,0.00010986,2]
[401465903,1768245031671,-270.09990375,0.00010986,2]
[401465904,1768245031680,-300.0,0.00011013,2]
[401465905,1768245031690,-300.0,0.00011013,2]
[401465906,1768245031700,-300.0,0.00011013,2]
[401465908,1768245031709,-1200.0,0.00011013,2]
[401465910,1768245031719,-50000.0,0.00011014,2]
[401465912,1768245031729,-1832.07614111,0.00011014,2]
[401465914,1768245031738,-1832.07614111,0.00011014,2]
[401465916,1768245031747,-182.87784041,0.00011014,2]
[401465918,1768245031756,-182.87784041,0.00011014,2]
[401465920,1768245031765,-182.87784041,0.00011014,2]
[401465922,1768245031775,-1832.07614111,0.00011014,2]
[401465924,1768245031784,-182.87784041,0.00011014,2]
[401465926,1768245031793,-420.0,0.00012102,2]
[401465928,1768245031803,-1680.0,0.00012114,2]
[401465930,1768245031812,-375.668,0.00012811,2]
[401465932,1768245031821,-179.18,0.00012811,2]
[401465934,1768245031829,-500.0,0.00012882,2]
[401465936,1768245031839,-24655.5573153,0.00012883,2]
[401465938,1768245031851,-459.76,0.00012883,2]
[401466026,1768245037817,-500.0,0.00012882,2]
[401466027,1768245037827,-571.38238871,0.00012882,2]
[401466028,1768245037837,-571.38238871,0.00012882,2]
[401466029,1768245037846,-378.88920983,0.00012882,2]
[401466030,1768245037856,-571.38238871,0.00012882,2]
[401466031,1768245037866,-571.38238871,0.00012882,2]
[401466033,1768245037875,-571.38238871,0.00012882,2]
[401466035,1768245037884,-571.38238871,0.00012882,2]
[401466036,1768245037894,-571.38238871,0.00012882,2]
[401466037,1768245037903,-571.38238871,0.00012882,2]
[401466038,1768245037912,-571.38238871,0.00012882,2]
[401466039,1768245037921,-571.38238871,0.00012882,2]
[401466040,1768245037930,-571.38238871,0.00012882,2]
[401466041,1768245037939,-571.38238871,0.00012882,2]
[401466042,1768245037948,-571.38238871,0.00012882,2]
[401466043,1768245037958,-571.38238871,0.00012882,2]
[401466044,1768245037967,-571.38238871,0.00012882,2]
[401466045,1768245037976,-571.38238871,0.00012882,2]
[401466046,1768245037985,-571.38238871,0.00012882,2]
[401466047,1768245037994,-571.38238871,0.00012882,2]
[401466048,1768245038004,-571.38238871,0.00012882,2]
[401466049,1768245038013,-571.38238871,0.00012882,2]
[401466050,1768245038023,-974884.6826847,0.00012883,2]
[401466051,1768245038033,-7554.49625499,0.000129,2]
[401466052,1768245038043,-318.71788643,0.00012986,2]
[401466053,1768245038054,-183.06071825,0.00013083,2]
[401466054,1768245038063,-151.0,0.000131,2]
[401466055,1768245038073,-151.0,0.000131,2]
[401466056,1768245038083,-151.0,0.000131,2]
[401466057,1768245038092,-151.0,0.000131,2]
[401466058,1768245038103,-151.0,0.000131,2]
[401466059,1768245038113,-151.0,0.000131,2]
[401466060,1768245038123,-151.0,0.000131,2]
[401466061,1768245038133,-151.0,0.000131,2]
[401466062,1768245038143,-151.0,0.000131,2]
[401466063,1768245038153,-1832.07614111,0.00013128,2]
[401466064,1768245038163,-1833.90821725,0.00013128,2]
[401466065,1768245038172,-500.0,0.00013273,2]
[401466066,1768245038183,-632.78438645,0.00013273,2]
[401466067,1768245038193,-500.0,0.00013273,2]
[401466068,1768245038202,-500.0,0.00013273,2]
[401466069,1768245038212,-500.0,0.00013273,2]
[401466070,1768245038222,-500.0,0.00013273,2]
[401466071,1768245038232,-500.0,0.00013273,2]
[401466072,1768245038244,-500.0,0.00013273,2]
[401466073,1768245038254,-151.23985323,0.00013273,2]
[401466074,1768245038264,-500.0,0.00013273,2]
[401466075,1768245038274,-500.0,0.00013273,2]
[401466076,1768245038283,-315.36866852,0.00013273,2]
[401466077,1768245038293,-500.0,0.00013273,2]
[401466078,1768245038303,-500.0,0.00013273,2]
[401466079,1768245038316,-500.0,0.00013273,2]
[401466080,1768245038325,-500.0,0.00013273,2]
[401466081,1768245038339,-500.0,0.00013273,2]
[401466082,1768245038348,-561.72813368,0.00013273,2]
[401466083,1768245038359,-500.0,0.00013273,2]
[401466084,1768245038369,-500.0,0.00013273,2]
[401466085,1768245038379,-500.0,0.00013273,2]
[401466086,1768245038389,-500.0,0.00013273,2]
[401466087,1768245038398,-500.0,0.00013273,2]
[401466088,1768245038407,-500.0,0.00013273,2]
[401466089,1768245038417,-500.0,0.00013273,2]
[401466090,1768245038426,-397.5283226,0.00013273,2]
[401466091,1768245038435,-500.0,0.00013273,2]
[401466092,1768245038444,-500.0,0.00013273,2]
[401466093,1768245038453,-500.0,0.00013273,2]
[401466094,1768245038463,-500.0,0.00013273,2]
[401466095,1768245038472,-500.0,0.00013273,2]
[401466096,1768245038480,-500.0,0.00013273,2]
[401466097,1768245038490,-500.0,0.00013273,2]
[401466098,1768245038499,-500.0,0.00013273,2]
[401466099,1768245038508,-500.0,0.00013273,2]
[401466100,1768245038518,-500.0,0.00013273,2]
[401466101,1768245038528,-500.0,0.00013273,2]
[401466102,1768245038538,-500.0,0.00013273,2]
[401466103,1768245038548,-500.0,0.00013273,2]
[401466104,1768245038557,-500.0,0.00013273,2]
[401466105,1768245038567,-500.02115387,0.00013273,2]
[401466106,1768245038576,-495.37416898,0.00013273,2]
[401466107,1768245038586,-647.532384,0.00013273,2]
[401466108,1768245038596,-500.0,0.00013273,2]
[401466109,1768245038607,-500.76042299,0.00013273,2]
[401466110,1768245038616,-500.0,0.00013273,2]
[401466111,1768245038626,-500.0,0.00013273,2]
[401466112,1768245038637,-500.0,0.00013273,2]
[401466113,1768245038646,-500.0,0.00013273,2]
[401466114,1768245038656,-500.0,0.00013273,2]
[401466115,1768245038666,-500.0,0.00013273,2]
[401466116,1768245038675,-618.77551937,0.00013273,2]
[401466117,1768245038685,-500.0,0.00013273,2]
[401466118,1768245038695,-402.63854001,0.00013273,2]
[401466119,1768245038704,-500.0,0.00013273,2]
[401466120,1768245038713,-500.0,0.00013273,2]
[401466121,1768245038723,-500.0,0.00013273,2]
[401466122,1768245038733,-500.0,0.00013273,2]
[401466123,1768245038743,-500.0,0.00013273,2]
[401466124,1768245038752,-500.0,0.00013273,2]
[401466125,1768245038762,-466.98416843,0.00013273,2]
[401466126,1768245038772,-500.0,0.00013273,2]
[401466127,1768245038781,-500.0,0.00013273,2]
[401466128,1768245038791,-500.0,0.00013273,2]
[401466129,1768245038800,-200.0,0.00013273,2]
[401466130,1768245038810,-200.0,0.00013273,2]
[401466131,1768245038821,-587.0,0.00013298,2]
[401466132,1768245038831,-1200.0,0.00013326,2]
[401466133,1768245038840,-200.0,0.00013547,2]
[401466134,1768245038851,-450.94,0.00013599,2]
[401466135,1768245038861,-300.0,0.00013673,2]
[401466136,1768245038871,-200.0,0.00013684,2]
[401466137,1768245038881,-2924.3817078,0.00013691,2]
[401466138,1768245038891,-500.0,0.00013698,2]
[401466139,1768245038901,-400.0,0.00013698,2]
[401466140,1768245038911,-500.0,0.00013698,2]
[401466141,1768245038922,-500.0,0.00013698,2]
[401466142,1768245038932,-500.0,0.00013698,2]
[401466143,1768245038942,-500.0,0.00013698,2]
[401466144,1768245039062,-564.53140937,0.00013698,2]
[401466145,1768245039073,-500.0,0.00013698,2]
[401466146,1768245039083,-500.0,0.00013698,2]
[401466147,1768245039094,-500.0,0.00013698,2]
[401466148,1768245039103,-500.0,0.00013698,2]
[401466149,1768245039113,-500.0,0.00013698,2]
[401466150,1768245039123,-500.0,0.00013698,2]
[401466151,1768245039133,-500.0,0.00013698,2]
[401466152,1768245039143,-534.57834013,0.00013698,2]
[401466153,1768245039154,-500.0,0.00013698,2]
[401466154,1768245039163,-1136.91,0.00013698,2]
[401466155,1768245039172,-1136.91,0.00013698,2]
[401466156,1768245039182,-1136.91,0.00013698,2]
[401466157,1768245039191,-1136.91,0.00013698,2]
[401466158,1768245039200,-1136.91,0.00013698,2]
[401466159,1768245039209,-1136.91,0.00013698,2]
[401466160,1768245039219,-1136.91,0.00013698,2]
[401466161,1768245039229,-1136.91,0.00013698,2]
[401466162,1768245039239,-1136.91,0.00013698,2]
[401466163,1768245039249,-1136.91,0.00013698,2]
[401466165,1768245039258,-1136.91,0.00013698,2]
[401466167,1768245039267,-1136.91,0.00013698,2]
[401466168,1768245039277,-1136.91,0.00013698,2]
[401466169,1768245039286,-1136.91,0.00013698,2]
[401466170,1768245039295,-1136.91,0.00013698,2]
[401466171,1768245039305,-1136.91,0.00013698,2]
[401466172,1768245039316,-1136.91,0.00013698,2]
[401466173,1768245039325,-1136.91,0.00013698,2]
[401466174,1768245039334,-1136.91,0.00013698,2]
[401466175,1768245039344,-1136.91,0.00013698,2]
[401466176,1768245039355,-1136.91,0.00013698,2]
[401466177,1768245039364,-1136.91,0.00013698,2]
[401466178,1768245039373,-1136.91,0.00013698,2]
[401466179,1768245039383,-1137.12734946,0.00013698,2]
[401466181,1768245039393,-500.0,0.00013698,2]
[401466182,1768245039402,-500.0,0.00013698,2]
[401466183,1768245039410,-500.0,0.00013698,2]
[401466184,1768245039419,-500.0,0.00013698,2]
[401466185,1768245039428,-500.0,0.00013698,2]
[401466186,1768245039438,-500.0,0.00013698,2]
[401466188,1768245039449,-500.0,0.00013698,2]
[401466189,1768245039458,-500.0,0.00013698,2]
[401466190,1768245039466,-500.0,0.00013698,2]
[401466191,1768245039475,-500.0,0.00013698,2]
[401466192,1768245039484,-500.0,0.00013698,2]
[401466194,1768245039493,-500.0,0.00013698,2]
[401466196,1768245039503,-500.0,0.00013698,2]
[401466198,1768245039511,-500.0,0.00013698,2]
[401466200,1768245039520,-500.0,0.00013698,2]
[401466201,1768245039529,-500.0,0.00013698,2]
[401466202,1768245039538,-500.0,0.00013698,2]
[401466203,1768245039547,-500.0,0.00013698,2]
[401466204,1768245039556,-500.0,0.00013698,2]
[401466205,1768245039565,-525.90656933,0.00013698,2]
[401466206,1768245039575,-500.0,0.00013698,2]
[401466207,1768245039584,-500.0,0.00013698,2]
[401466208,1768245039594,-500.0,0.00013698,2]
[401466209,1768245039603,-500.0,0.00013698,2]
[401466210,1768245039613,-500.0,0.00013698,2]
[401466211,1768245039622,-500.0,0.00013698,2]
[401466212,1768245039631,-500.0,0.00013698,2]
[401466213,1768245039640,-500.0,0.00013698,2]
[401466214,1768245039650,-500.0,0.00013698,2]
[401466216,1768245039659,-500.0,0.00013698,2]
[401466218,1768245039668,-239.37126777,0.00013698,2]
[401466219,1768245039677,-500.0,0.00013698,2]
[401466220,1768245039687,-500.0,0.00013698,2]
[401466221,1768245039696,-500.0,0.00013698,2]
[401466223,1768245039706,-500.0,0.00013698,2]
[401466224,1768245039715,-500.0,0.00013698,2]
[401466225,1768245039724,-500.0,0.00013698,2]
[401466226,1768245039733,-500.0,0.00013698,2]
[401466227,1768245039742,-500.0,0.00013698,2]
[401466228,1768245039751,-500.0,0.00013698,2]
[401466229,1768245039761,-17379.6692671,0.00013699,2]
[401466230,1768245039770,-1000.0,0.00013699,2]
[401466231,1768245039780,-2946.8233421,0.00013699,2]
[401466232,1768245039789,-6144.3718207,0.00013699,2]
[401466233,1768245039799,-500.0,0.00013699,2]
[401466234,1768245039808,-500.0,0.00013699,2]
[401466235,1768245039817,-252.89893897,0.00013699,2]
[401466236,1768245039827,-500.0,0.00013699,2]
[401466237,1768245039836,-500.0,0.00013699,2]
[401466238,1768245039845,-500.0,0.00013699,2]
[401466239,1768245039857,-500.0,0.00013699,2]
[401466240,1768245039866,-500.0,0.00013699,2]
[401466241,1768245039876,-500.0,0.00013699,2]
[401466242,1768245039886,-500.0,0.00013699,2]
[401466243,1768245039895,-276.28275624,0.00013699,2]
[401466244,1768245039904,-501.52224721,0.00013699,2]
[401466245,1768245039913,-612.0897626,0.00013699,2]
[401466246,1768245039923,-500.0,0.00013699,2]
[401466247,1768245039932,-500.0,0.00013699,2]
[401466248,1768245039941,-500.0,0.00013699,2]
[401466249,1768245039951,-500.0,0.00013699,2]
[401466250,1768245039960,-500.0,0.00013699,2]
[401466251,1768245039969,-500.0,0.00013699,2]
[401466252,1768245039979,-500.0,0.00013699,2]
[401466253,1768245039988,-500.0,0.00013699,2]
[401466254,1768245039997,-500.0,0.00013699,2]